fUST/lending_fUST_20240921
["ID","MTS","AMOUNT","RATE_DAILY","PERIOD"]
[338817365,1726925470267,-476.00754,0.0001628,2]
[338817366,1726925470276,-476.00754,0.0001628,2]
[338817367,1726925470286,-3000.0,0.0001629,2]
[338817368,1726925470295,-3000.0,0.000163,2]
[338817369,1726925470304,-3000.0,0.0001631,2]
[338817370,1726925470313,-3000.0,0.0001632,2]
[338817371,1726925470322,-3000.0,0.0001633,2]
[338817372,1726925470333,-3000.0,0.0001634,2]
[338817373,1726925470343,-3000.0,0.0001635,2]
[338817374,1726925470353,-151.01030865,0.00016351,2]
[338817375,1726925470363,-3000.0,0.0001636,2]
[338817376,1726925470372,-3000.0,0.0001637,2]
[338817377,1726925470382,-3000.0,0.0001638,2]
[338817378,1726925470391,-3000.0,0.0001639,2]
[338817379,1726925470400,-1000.0,0.000164,2]
[338817380,1726925470413,-3000.0,0.000164,2]
[338817381,1726925470422,-600.0,0.00016408,2]
[338817382,1726925470432,-3000.0,0.0001641,2]
[338817383,1726925470441,-3000.0,0.0001642,2]
[338817384,1726925470451,-3000.0,0.0001643,2]
[338817385,1726925470460,-200.0,0.00016438,2]
[338817386,1726925470470,-200.0,0.00016438,2]
[338817387,1726925470480,-200.0,0.00016438,2]
[338817388,1726925470490,-200.0,0.00016438,2]
[338817389,1726925470499,-200.0,0.00016438,2]
[338817390,1726925470509,-200.0,0.00016438,2]
[338817391,1726925470519,-200.0,0.00016438,2]
[338817392,1726925470528,-200.0,0.00016438,2]
[338817393,1726925470538,-200.0,0.00016438,2]
[338817394,1726925470548,-383.9,0.00016438,2]
[338817395,1726925470558,-151.0,0.00016438,2]
[338817396,1726925470567,-151.0,0.00016438,2]
[338817397,1726925470575,-3000.0,0.0001644,2]
[338817398,1726925470585,-3000.0,0.0001645,2]
[338817399,1726925470595,-3000.0,0.0001646,2]
[338817400,1726925470606,-2626.0,0.000165,2]
[338817401,1726925470616,-500.0,0.00016526,2]
[338817402,1726925470628,-500.0,0.00016526,2]
[338817403,1726925470638,-15384.34,0.00016526,2]
[338817404,1726925470647,-2184.8,0.00016526,2]
[338817405,1726925470656,-500.0,0.00016527,2]
[338817406,1726925470667,-483.44,0.00016528,2]
[338817407,1726925470676,-686.74,0.00016528,2]
[338817408,1726925470685,-500.0,0.00016528,2]
[338817409,1726925470694,-500.0,0.00016528,2]
[338817410,1726925470706,-500.0,0.00016528,2]
[338817411,1726925470717,-500.0,0.00016528,2]
[338817412,1726925470726,-560.11274404,0.00016528,2]
[338817413,1726925470736,-500.0,0.00016528,2]
[338817414,1726925470746,-500.0,0.00016528,2]
[338817415,1726925470754,-1331.46,0.00016528,2]
[338817416,1726925470764,-631.7,0.00016528,2]
[338817417,1726925470773,-500.0,0.00016528,2]
[338817418,1726925470782,-500.0,0.00016528,2]
[338817419,1726925470792,-500.0,0.00016528,2]
[338817420,1726925470801,-500.0,0.00016528,2]
[338817421,1726925470812,-500.0,0.00016528,2]
[338817422,1726925470822,-500.0,0.00016528,2]
[338817423,1726925470831,-739.22,0.00016528,2]
[338817424,1726925470841,-633.92825817,0.00016528,2]
[338817425,1726925470851,-500.0,0.00016538,2]
[338817426,1726925470860,-500.0,0.00016538,2]
[338817427,1726925470869,-782.22,0.00016538,2]
[338817428,1726925470878,-200.0,0.00016538,2]
[338817429,1726925470887,-342.78346368,0.00016538,2]
[338817430,1726925470897,-399.32,0.00016538,2]
[338817431,1726925470907,-500.0,0.00016538,2]
[338817432,1726925470918,-500.0,0.00016538,2]
[338817433,1726925470927,-500.0,0.00016538,2]
[338817434,1726925470937,-986.69,0.00016538,2]
[338817435,1726925470947,-500.0,0.00016538,2]
[338817436,1726925470957,-547.94,0.00016538,2]
[338817437,1726925470967,-500.0,0.00016538,2]
[338817438,1726925470976,-655.17,0.00016538,2]
[338817439,1726925470985,-500.0,0.00016538,2]
[338817440,1726925470995,-689.45,0.00016538,2]
[338817441,1726925471005,-537.53,0.00016538,2]
[338817442,1726925471014,-562.70114268,0.00016538,2]
[338817443,1726925471023,-721.71,0.00016538,2]
[338817444,1726925471033,-500.0,0.00016538,2]
[338817445,1726925471043,-500.0,0.00016538,2]
[338817446,1726925471054,-789.76,0.00016538,2]
[338817447,1726925471063,-500.0,0.00016538,2]
[338817448,1726925471073,-500.0,0.00016538,2]
[338817449,1726925471085,-1281.6,0.00016538,2]
[338817450,1726925471095,-500.0,0.00016538,2]
[338817451,1726925471105,-151.0,0.00016538,2]
[338817452,1726925471115,-151.0,0.00016538,2]
[338817453,1726925471126,-151.0,0.00016538,2]
[338817454,1726925471137,-151.0,0.00016538,2]
[338817455,1726925471146,-590.516651,0.00016538,2]
[338817456,1726925471155,-645.22,0.00016539,2]
[338817457,1726925471164,-500.0,0.00016539,2]
[338817458,1726925471174,-150.0,0.00016569,2]
[338817459,1726925471188,-600.0,0.00016579,2]
[338817460,1726925471197,-150.0,0.00016596,2]
[338817461,1726925471210,-150.0,0.00016624,2]
[338817462,1726925471222,-927.96169,0.0001665,2]
[338817463,1726925471233,-150.0,0.00016651,2]
[338817464,1726925471245,-150.0,0.00016679,2]
[338817465,1726925471255,-219.42990979,0.00016706,2]
[338817466,1726925471265,-383.9,0.00016712,2]
[338817467,1726925471275,-600.0,0.0001675,2]
[338817468,1726925471286,-160.0,0.0001676,3]
[338817469,1726925471297,-151.0,0.00016775,2]
[338817470,1726925471307,-364.588233,0.00016775,2]
[338817471,1726925471318,-151.0,0.00016775,2]
[338817472,1726925471329,-364.588233,0.00016775,2]
[338817473,1726925471340,-151.0,0.00016775,2]
[338817474,1726925471350,-196.14145,0.00016775,2]
[338817475,1726925471359,-196.14145,0.00016775,2]
[338817476,1726925471369,-1503.646735,0.00016775,2]
[338817477,1726925471524,-1503.646735,0.00016775,2]
[338817478,1726925471534,-7140.47594759,0.00016796,2]
[338817479,1726925471544,-500.59493061,0.000168,2]
[338817480,1726925471554,-500.0,0.000168,2]
[338817481,1726925471564,-500.0,0.000168,2]
[338817482,1726925471573,-15384.34,0.000168,2]
[338817483,1726925471582,-2184.8,0.000168,2]
[338817484,1726925471595,-500.0,0.00016801,2]
[338817485,1726925471606,-41957.44149745,0.00016802,3]
[338817486,1726925471616,-686.74,0.00016802,2]
[338817487,1726925471629,-500.0,0.00016802,2]
[338817488,1726925471639,-500.0,0.00016802,2]
[338817489,1726925471650,-436.44838067,0.00016802,2]
[338817490,1726925471660,-316.82,0.00016802,2]
[338817491,1726925471671,-500.0,0.00016802,2]
[338817492,1726925471680,-500.0,0.00016802,2]
[338817493,1726925471689,-1331.46,0.00016802,2]
[338817494,1726925471699,-631.7,0.00016802,2]
[338817495,1726925471710,-2038.312526,0.00016802,2]
[338817496,1726925471721,-2038.312526,0.00016802,2]
[338817497,1726925471732,-151.0,0.00016802,2]
[338817498,1726925471742,-151.0,0.00016802,2]
[338817499,1726925471752,-151.0,0.00016802,2]
[338817500,1726925471762,-740.186254,0.00016802,2]
[338817501,1726925471772,-151.0,0.00016802,2]
[338817502,1726925471782,-740.186254,0.00016802,2]
[338817503,1726925471792,-391.594945,0.00016802,2]
[338817504,1726925471803,-391.594945,0.00016802,2]
[338817505,1726925471815,-1106.068843,0.00016802,2]
[338817506,1726925471827,-1106.068843,0.00016802,2]
[338817507,1726925471839,-157.050162,0.00016802,2]
[338817508,1726925471850,-157.050162,0.00016802,2]
[338817509,1726925471863,-500.0,0.00016802,2]
[338817510,1726925471874,-500.0,0.00016802,2]
[338817511,1726925471883,-228.217079,0.00016802,2]
[338817512,1726925471893,-228.217079,0.00016802,2]
[338817513,1726925471903,-500.0,0.00016802,2]
[338817514,1726925471914,-500.0,0.00016802,2]
[338817515,1726925471926,-1302.07657,0.00016802,2]
[338817516,1726925471938,-1302.07657,0.00016802,2]
[338817517,1726925471950,-500.0,0.00016802,2]
[338817518,1726925471959,-840.683625,0.00016802,2]
[338817519,1726925471971,-840.683625,0.00016802,2]
[338817520,1726925471982,-500.0,0.00016802,2]
[338817521,1726925471993,-739.22,0.00016802,2]
[338817522,1726925472005,-500.0,0.00016812,2]
[338817523,1726925472014,-500.0,0.00016812,2]
[338817524,1726925472025,-782.22,0.00016812,2]
[338817525,1726925472034,-200.0,0.00016812,2]
[338817526,1726925472045,-500.0,0.00016812,2]
[338817527,1726925472057,-500.0,0.00016812,2]
[338817528,1726925472067,-500.0,0.00016812,2]
[338817529,1726925472076,-986.69,0.00016812,2]
[338817530,1726925472086,-500.0,0.00016812,2]
[338817531,1726925472096,-547.94,0.00016812,2]
[338817532,1726925472106,-500.0,0.00016812,2]
[338817533,1726925472117,-655.17,0.00016812,2]
[338817534,1726925472128,-500.0,0.00016812,2]
[338817535,1726925472138,-689.45,0.00016812,2]
[338817536,1726925472151,-537.53,0.00016812,2]
[338817537,1726925472161,-721.71,0.00016812,2]
[338817538,1726925472170,-500.0,0.00016812,2]
[338817539,1726925472180,-500.0,0.00016812,2]
[338817540,1726925472189,-789.76,0.00016812,2]
[338817541,1726925472199,-500.0,0.00016812,2]
[338817542,1726925472210,-300.96231367,0.00016812,2]
[338817543,1726925472220,-1281.6,0.00016812,2]
[338817544,1726925472229,-500.0,0.00016812,2]
[338817545,1726925472238,-645.22,0.00016813,2]
[338817546,1726925472248,-500.0,0.00016813,2]
[338817547,1726925472258,-1000.0,0.00016816,2]
[338817548,1726925472268,-478.79470768,0.00016825,2]
[338817549,1726925472277,-1000.0,0.00016836,2]
[338817550,1726925472287,-511.69653011,0.0001684,2]
[338817551,1726925472296,-587.0,0.00016863,2]
[338817552,1726925472306,-151.0,0.00016875,2]
[338817553,1726925472315,-181.06567,0.00016875,2]
[338817554,1726925472325,-550.676394,0.00016875,2]
[338817555,1726925472334,-550.676394,0.00016875,2]
[338817556,1726925472344,-159.191846,0.00016877,2]
[338817557,1726925472354,-412.053435,0.00016877,2]
[338817558,1726925472363,-412.053435,0.00016877,2]
[338817559,1726925472373,-151.0,0.00016877,2]
[338817560,1726925472382,-151.0,0.00016877,2]
[338817561,1726925472391,-151.0,0.00016877,2]
[338817562,1726925472400,-151.0,0.00016877,2]
[338817563,1726925472410,-1000.0,0.00016897,2]
[338817564,1726925472419,-600.0,0.00016921,2]
[338817565,1726925472429,-383.9,0.00016986,2]
[338817566,1726925472439,-3000.0,0.00017,2]
[338817567,1726925472449,-152.0,0.00017,2]
[338817568,1726925472459,-1119.0,0.00017,2]
[338817569,1726925472470,-1000.0,0.0001701,2]
[338817570,1726925472491,-410.07372012,0.00017049,2]
[338817571,1726925472504,-12070.00341736,0.00017049,2]
[338817572,1726925472515,-500.0,0.00017074,2]
[338817573,1726925472526,-500.0,0.00017074,2]
[338817574,1726925472539,-15384.34,0.00017074,2]
[338817575,1726925472550,-2184.8,0.00017074,2]
[338817576,1726925472560,-500.0,0.00017075,2]
[338817577,1726925472570,-686.74,0.00017076,2]
[338817578,1726925472580,-500.0,0.00017076,2]
[338817579,1726925472590,-500.0,0.00017076,2]
[338817580,1726925472600,-151.0,0.00017076,2]
[338817581,1726925472611,-422.120102,0.00017076,2]
[338817582,1726925472621,-422.120102,0.00017076,2]
[338817583,1726925472635,-500.0,0.00017076,2]
[338817584,1726925472647,-1331.46,0.00017076,2]
[338817585,1726925472657,-631.7,0.00017076,2]
[338817586,1726925472667,-500.0,0.00017076,2]
[338817587,1726925472676,-500.0,0.00017076,2]
[338817588,1726925472686,-500.0,0.00017076,2]
[338817589,1726925472696,-500.0,0.00017076,2]
[338817590,1726925472707,-500.0,0.00017076,2]
[338817591,1726925472718,-739.22,0.00017076,2]
[338817592,1726925472727,-77762.01032221,0.00017086,3]
[338817593,1726925472738,-500.0,0.00017086,2]
[338817594,1726925472750,-500.0,0.00017086,2]
[338817595,1726925472759,-782.22,0.00017086,2]
[338817596,1726925472769,-200.0,0.00017086,2]
[338817597,1726925472780,-1431.139768,0.00017086,2]
[338817598,1726925472790,-500.0,0.00017086,2]
[338817599,1726925472800,-1431.139768,0.00017086,2]
[338817600,1726925472813,-500.0,0.00017086,2]
[338817601,1726925472823,-307.02112397,0.00017086,2]
[338817602,1726925472833,-986.69,0.00017086,2]
[338817603,1726925472846,-500.0,0.00017086,2]
[338817604,1726925472856,-547.94,0.00017086,2]
[338817605,1726925472866,-564.59113694,0.00017086,2]
[338817606,1726925472877,-655.17,0.00017086,2]
[338817607,1726925472887,-500.0,0.00017086,2]
[338817608,1726925472898,-689.45,0.00017086,2]
[338817609,1726925472909,-537.53,0.00017086,2]
[338817610,1726925472920,-721.71,0.00017086,2]
[338817611,1726925472929,-500.0,0.00017086,2]
[338817612,1726925472939,-500.0,0.00017086,2]
[338817613,1726925472950,-789.76,0.00017086,2]
[338817614,1726925472961,-500.0,0.00017086,2]
[338817615,1726925472971,-1281.6,0.00017086,2]
[338817616,1726925472981,-500.0,0.00017086,2]
[338817617,1726925472991,-645.22,0.00017087,2]
[338817618,1726925473001,-500.0,0.00017087,2]
[338817619,1726925473011,-600.0,0.00017092,2]
[338817620,1726925473021,-500.0,0.00017114,2]
[338817621,1726925473030,-205.0,0.0001714,2]
[338817622,1726925473040,-151.0,0.00017144,2]
[338817623,1726925473049,-151.0,0.00017144,2]
[338817624,1726925473059,-151.0,0.00017144,2]
[338817625,1726925473069,-151.0,0.00017144,2]
[338817626,1726925473080,-151.0,0.00017144,2]
[338817627,1726925473094,-151.0,0.00017144,2]
[338817628,1726925473106,-151.0,0.00017144,2]
[338817629,1726925473116,-151.0,0.00017144,2]
[338817630,1726925473126,-151.0,0.00017144,2]
[338817631,1726925473138,-927.96169,0.0001715,2]
[338817632,1726925473148,-306.0,0.00017153,2]
[338817633,1726925473159,-153.0,0.00017153,2]
[338817634,1726925473169,-306.0,0.00017153,2]
[338817635,1726925473179,-306.0,0.00017153,2]
[338817636,1726925473188,-153.0,0.00017153,2]
[338817637,1726925473199,-153.0,0.00017153,2]
[338817638,1726925473210,-500.0,0.00017155,2]
[338817639,1726925473220,-369.698661,0.00017158,2]
[338817640,1726925473231,-152.938434,0.0001719,2]
[338817641,1726925473242,-152.544998,0.0001719,2]
[338817642,1726925473252,-264.83037,0.0001719,2]
[338817643,1726925473262,-1059.32148,0.0001719,2]
[338817644,1726925473273,-9006.40314432,0.0001722,7]
[338817645,1726925473453,-2637.3119962,0.0001722,7]
[338817646,1726925473633,-608.09068544,0.0001406,2]
[338817647,1726925473642,-229.81,0.0001406,2]
[338817648,1726925473652,-500.0,0.00014061,2]
[338817649,1726925473662,-549.74091,0.00014346,2]
[338817650,1726925473673,-590.516651,0.00014346,2]
[338817651,1726925473683,-549.74091,0.0001462,2]
[338817652,1726925473693,-590.516651,0.0001462,2]
[338817653,1726925473703,-150.0,0.00015031,2]
[338817654,1726925473713,-549.74091,0.00015158,2]
[338817655,1726925473722,-590.516651,0.00015158,2]
[338817656,1726925473731,-590.516651,0.0001598,2]
[338817657,1726925473740,-549.74091,0.0001598,2]
[338817658,1726925473749,-590.516651,0.00016538,2]
[338817659,1726925473759,-549.74091,0.00016538,2]
[338817660,1726925473768,-3163.121575,0.0001722,7]
[338817661,1726925473985,-500.71773299,0.00014051,2]
[338817662,1726925473994,-233.58226701,0.00014062,2]
[338817663,1726925474011,-266.41773299,0.00014062,2]
[338817664,1726925474020,-470.45307042,0.00014072,2]
[338817666,1726925499300,5389.5149574,0.00013066,2]
[338817668,1726925548136,151.6392528,0.00013961,2]
[338817669,1726925578885,1643.3119012,0.00013064,2]
[338817670,1726925622349,356.10552356,0.0001395,2]
[338817671,1726925713389,151.6392528,0.00013951,2]
[338817672,1726925873732,151.6392528,0.00013951,2]
[338817673,1726926019017,151.6392528,0.0001395,2]
[338817675,1726926154948,151.6392528,0.0001395,2]
[338817676,1726926224378,-782.33277,0.00023233,120]
[338817677,1726926280272,151.6392528,0.0001394,2]
[338817678,1726926344951,663.97882779,0.00013951,2]
[338817679,1726926405686,151.6392528,0.0001394,2]
[338817680,1726926413613,1000.0,0.00013951,2]
[338817681,1726926455654,500.0,0.0001401,2]
[338817682,1726926471023,2000.0,0.0001401,2]
[338817683,1726926476158,266.733878,0.00013699,2]
[338817684,1726926487840,166.666666,0.00013141,2]
[338817685,1726926488073,166.666666,0.0001319,2]
[338817686,1726926488275,166.666666,0.00013239,2]
[338817687,1726926488529,166.666666,0.00013288,2]
[338817688,1726926488772,166.666666,0.00013336,2]
[338817689,1726926488981,166.666666,0.00013385,2]
[338817690,1726926489209,166.666666,0.00013434,2]
[338817691,1726926489555,166.666666,0.00013483,2]
[338817692,1726926489682,166.666666,0.00013532,2]
[338817693,1726926490142,166.666666,0.00013581,2]
[338817694,1726926490366,166.666666,0.0001363,2]
[338817695,1726926490584,166.666666,0.00013679,2]
[338817696,1726926490809,166.666666,0.00013728,2]
[338817697,1726926491028,166.666666,0.00013777,2]
[338817698,1726926491226,166.666666,0.00013825,2]
[338817700,1726926618834,2800.0,0.00014014,2]
[338817705,1726926631962,-300.0,0.0001403,2]
[338817706,1726926631971,-300.0,0.0001403,2]
[338817707,1726926631981,-6819.71479983,0.00014031,2]
[338817737,1726926637880,-818.75508754,0.00014031,2]
[338817750,1726926637993,-476.49502699,0.00014031,2]
[338817752,1726926638005,-158733.557049,0.00014031,2]
[338817754,1726926638016,-2028.74122859,0.00014032,2]
[338817757,1726926638027,-39683.3892622,0.00014032,2]
[338817759,1726926638038,-500.0,0.00014039,2]
[338817761,1726926638051,-500.0,0.00014039,2]
[338817763,1726926638062,-500.0,0.00014039,2]
[338817766,1726926638075,-500.0,0.00014039,2]
[338817768,1726926638086,-500.0,0.00014039,2]
[338817770,1726926638098,-500.0,0.00014039,2]
[338817772,1726926638108,-14753.28,0.00014039,2]
[338817774,1726926638119,-520.0068009,0.00014039,2]
[338817777,1726926638131,-500.0,0.00014039,2]
[338817779,1726926638143,-2334.74,0.00014039,2]
[338817781,1726926638155,-500.0,0.00014039,2]
[338817783,1726926638167,-2028.74122859,0.00014039,2]
[338817785,1726926638178,-39683.3892622,0.00014039,2]
[338817788,1726926638189,-250.0,0.00014039,2]
[338817790,1726926638200,-190.67161466,0.00014039,2]
[338817792,1726926638211,-500.0,0.00014039,2]
[338817794,1726926638222,-500.0,0.00014039,2]
[338817796,1726926638233,-88.05699287,0.00014039,2]
[338817799,1726926638255,-411.94300713,0.00014039,2]
[338817802,1726926638266,-596.35778699,0.00014039,2]
[338817804,1726926638277,-500.0,0.00014039,2]
[338817806,1726926638289,-500.0,0.00014039,2]
[338817808,1726926638300,-500.0,0.00014039,2]
[338817811,1726926638312,-500.0,0.00014039,2]
[338817813,1726926638324,-500.0,0.00014039,2]
[338817815,1726926638336,-500.0,0.00014039,2]
[338817817,1726926638346,-500.0,0.00014039,2]
[338817819,1726926638359,-500.0,0.00014039,2]
[338817820,1726926638370,-500.0,0.00014039,2]
[338817821,1726926638381,-500.0,0.00014039,2]
[338817822,1726926638393,-500.0,0.00014039,2]
[338817823,1726926638404,-500.0,0.00014039,2]
[338817824,1726926638414,-500.0,0.00014039,2]
[338817825,1726926638427,-557.90365337,0.00014039,2]
[338817826,1726926638440,-500.0,0.00014039,2]
[338817827,1726926638453,-500.0,0.00014039,2]
[338817828,1726926638465,-500.0,0.00014039,2]
[338817829,1726926638477,-500.0,0.00014039,2]
[338817831,1726926638487,-500.0,0.00014039,2]
[338817833,1726926638497,-500.0,0.0001404,2]
[338817835,1726926638506,-500.0,0.0001404,2]
[338817837,1726926638516,-500.0,0.0001404,2]
[338817839,1726926638527,-500.0,0.0001404,2]
[338817840,1726926638538,-500.0,0.0001404,2]
[338817841,1726926638550,-500.0,0.0001404,2]
[338817842,1726926638562,-539.98,0.0001404,2]
[338817843,1726926638574,-500.0,0.0001404,2]
[338817844,1726926638586,-500.0,0.0001404,2]
[338817845,1726926638596,-500.0,0.0001404,2]
[338817846,1726926638605,-500.0,0.0001404,2]
[338817847,1726926638617,-500.0,0.0001404,2]
[338817848,1726926638628,-500.0,0.0001404,2]
[338817849,1726926638639,-506.6203096,0.0001404,2]
[338817850,1726926638650,-500.0,0.0001404,2]
[338817851,1726926638661,-500.0,0.0001404,2]
[338817852,1726926638672,-500.0,0.0001404,2]
[338817853,1726926638683,-500.0,0.0001404,2]
[338817854,1726926638693,-500.0,0.0001404,2]
[338817855,1726926638705,-500.0,0.0001404,2]
[338817856,1726926638715,-500.0,0.0001404,2]
[338817857,1726926638726,-883.49,0.0001404,2]
[338817858,1726926638736,-883.49,0.0001404,2]
[338817859,1726926638746,-500.0,0.0001404,2]
[338817860,1726926638758,-887.28,0.0001404,2]
[338817861,1726926638768,-500.0,0.0001404,2]
[338817862,1726926638778,-500.0,0.0001404,2]
[338817863,1726926638788,-500.0,0.0001404,2]
[338817864,1726926638798,-449.07,0.0001404,2]
[338817865,1726926638809,-500.0,0.0001404,2]
[338817866,1726926638819,-500.0,0.0001404,2]
[338817867,1726926638829,-500.0,0.0001404,2]
[338817868,1726926638839,-500.0,0.0001404,2]
[338817869,1726926638850,-500.0,0.0001404,2]
[338817870,1726926638860,-500.0,0.0001404,2]
[338817871,1726926638870,-500.0,0.0001404,2]
[338817872,1726926638881,-500.0,0.0001404,2]
[338817873,1726926638892,-500.0,0.0001404,2]
[338817874,1726926638902,-500.0,0.0001404,2]
[338817875,1726926638913,-500.0,0.0001404,2]
[338817876,1726926638923,-500.0,0.0001404,2]
[338817877,1726926638933,-501.606519,0.0001404,2]
[338817878,1726926638944,-500.0,0.0001404,2]
[338817879,1726926638956,-500.0,0.0001404,2]
[338817880,1726926638967,-500.0,0.0001404,2]
[338817881,1726926638977,-500.0,0.0001404,2]
[338817882,1726926638988,-500.0,0.0001404,2]
[338817883,1726926638999,-159.42303596,0.0001404,2]
[338817884,1726926639010,-500.0,0.0001404,2]
[338817885,1726926639021,-500.0,0.0001404,2]
[338817886,1726926639031,-500.0,0.0001404,2]
[338817887,1726926639041,-500.0,0.0001404,2]
[338817888,1726926639051,-230.78220311,0.0001404,2]
[338817889,1726926639062,-500.0,0.0001404,2]
[338817890,1726926639072,-500.0,0.0001404,2]
[338817891,1726926639085,-500.0,0.0001404,2]
[338817892,1726926639095,-500.0,0.0001404,2]
[338817893,1726926639106,-500.0,0.0001404,2]
[338817894,1726926639117,-500.0,0.0001404,2]
[338817895,1726926639127,-500.0,0.0001404,2]
[338817896,1726926639138,-500.0,0.0001404,2]
[338817898,1726926639148,-500.0,0.0001404,2]
[338817899,1726926639159,-500.0,0.0001404,2]
[338817900,1726926639170,-539.92799271,0.0001404,2]
[338817901,1726926639180,-500.0,0.0001404,2]
[338817902,1726926639191,-500.0,0.0001404,2]
[338817903,1726926639202,-500.0,0.0001404,2]
[338817904,1726926639213,-501.53192964,0.0001404,2]
[338817905,1726926639223,-500.0,0.0001404,2]
[338817906,1726926639234,-500.0,0.0001404,2]
[338817907,1726926639245,-500.0,0.0001404,2]
[338817908,1726926639256,-500.0,0.0001404,2]
[338817909,1726926639267,-500.0,0.0001404,2]
[338817910,1726926639277,-500.0,0.0001404,2]
[338817911,1726926639288,-501.34504268,0.0001404,2]
[338817912,1726926639299,-500.0,0.0001404,2]
[338817913,1726926639309,-500.0,0.0001404,2]
[338817914,1726926639319,-500.0,0.0001404,2]
[338817915,1726926639330,-500.0,0.0001404,2]
[338817916,1726926639341,-505.45429751,0.0001404,2]
[338817917,1726926639352,-500.0,0.0001404,2]
[338817918,1726926639364,-500.0,0.0001404,2]
[338817919,1726926639375,-508.15,0.0001404,2]
[338817920,1726926639386,-500.0,0.0001404,2]
[338817921,1726926639398,-500.0,0.0001404,2]
[338817922,1726926639409,-500.0,0.0001404,2]
[338817923,1726926639420,-500.0,0.0001404,2]
[338817924,1726926639434,-500.0,0.0001404,2]
[338817925,1726926639446,-501.30842904,0.0001404,2]
[338817926,1726926639458,-500.0,0.0001404,2]
[338817927,1726926639468,-500.0,0.0001404,2]
[338817928,1726926639478,-500.0,0.0001404,2]
[338817929,1726926639488,-500.0,0.0001404,2]
[338817930,1726926639498,-500.0,0.0001404,2]
[338817931,1726926639509,-501.92729888,0.0001404,2]
[338817932,1726926639519,-500.0,0.0001404,2]
[338817933,1726926639529,-500.0,0.0001404,2]
[338817934,1726926639540,-428.24871143,0.0001404,2]
[338817935,1726926639552,-500.0,0.0001404,2]
[338817936,1726926639563,-500.0,0.0001404,2]
[338817937,1726926639574,-6086.22368577,0.0001404,2]
[338817938,1726926639584,-79366.7785244,0.0001404,2]
[338817939,1726926639595,-6086.22368577,0.00014041,2]
[338817940,1726926639605,-883.49,0.00014049,2]
[338817941,1726926639616,-883.49,0.00014049,2]
[338817942,1726926639626,-883.49,0.00014049,2]
[338817943,1726926639638,-270.1406163,0.00014049,2]
[338817944,1726926639649,-500.0,0.00014049,2]
[338817945,1726926639660,-500.0,0.00014049,2]
[338817946,1726926639670,-355.1141229,0.00014049,2]
[338817947,1726926639681,-500.0,0.00014049,2]
[338817948,1726926639691,-388.4361849,0.00014049,2]
[338817949,1726926639701,-500.0,0.00014049,2]
[338817950,1726926639712,-500.0,0.00014049,2]
[338817951,1726926639723,-233.14737011,0.00014049,2]
[338817952,1726926639734,-500.0,0.00014049,2]
[338817953,1726926639746,-500.0,0.00014049,2]
[338817954,1726926639756,-500.0,0.00014049,2]
[338817955,1726926639766,-500.0,0.00014049,2]
[338817956,1726926639778,-500.0,0.00014049,2]
[338817957,1726926639792,-500.0,0.00014049,2]